[Event "Argentine Superior Chess Championship 2023"]
[Site "https://www.chess.com"]
[Date "2023.11.04"]
[Round "8"]
[White "Acosta, Pablo Ismael"]
[Black "Gomez, Carlos David"]
[Result "1/2-1/2"]
[Board "4"]
[TimeControl "5400+30"]
[WhiteFideId "124311"]
[BlackFideId "114669"]
[WhiteElo "2482"]
[BlackElo "2331"]
[WhiteTeam "ARG"]
[BlackTeam "ARG"]
[WhiteClock "0:43:46"]
[BlackClock "0:46:25"]

1. d4 {[%clk 1:15:11]}  d5 {[%clk 1:30:44]} 2. c4 {[%clk 1:15:33]}  c6 {[%clk 1:31:05]} 3. Nf3 {[%clk 1:15:40]}  Nf6 {[%clk 1:31:29]} 4. e3 {[%clk 1:16:06]}  Bf5 {[%clk 1:29:07]} 5. Nc3 {[%clk 1:15:43]}  e6 {[%clk 1:29:30]} 6. Qb3 {[%clk 1:14:19]}  Qb6 {[%clk 1:26:48]} 7. Qxb6 {[%clk 1:14:10]}  axb6 {[%clk 1:26:42]} 8. Nh4 {[%clk 1:14:35]}  Bc2 {[%clk 1:19:38]} 9. cxd5 {[%clk 1:13:21]}  Nxd5 {[%clk 1:16:32]} 10. Nxd5 {[%clk 1:11:48]}  exd5 {[%clk 1:16:18]} 11. Kd2 {[%clk 1:12:14]}  Be7 {[%clk 1:10:30]} 12. Kxc2 {[%clk 1:07:35]}  Bxh4 {[%clk 1:10:53]} 13. g3 {[%clk 1:07:16]}  Be7 {[%clk 1:11:15]} 14. Bg2 {[%clk 1:07:41]}  O-O {[%clk 1:10:32]} 15. Bd2 {[%clk 1:07:16]}  Na6 {[%clk 1:10:08]} 16. a3 {[%clk 1:06:11]}  Nc7 {[%clk 1:10:11]} 17. Rhe1 {[%clk 1:06:19]}  f5 {[%clk 1:03:19]} 18. Bc3 {[%clk 1:04:49]}  Nb5 {[%clk 1:00:41]} 19. a4 {[%clk 1:02:29]}  Nc7 {[%clk 0:59:17]} 20. f3 {[%clk 1:01:54]}  Bd6 {[%clk 0:55:57]} 21. Kb3 {[%clk 1:01:01]}  Rae8 {[%clk 0:50:37]} 22. Rad1 {[%clk 0:58:26]}  Re6 {[%clk 0:49:26]} 23. e4 {[%clk 0:57:44]}  Rh6 {[%clk 0:40:02]} 24. Rh1 {[%clk 0:51:34]}  fxe4 {[%clk 0:36:59]} 25. fxe4 {[%clk 0:51:25]}  dxe4 {[%clk 0:37:22]} 26. Bxe4 {[%clk 0:51:22]}  Rh5 {[%clk 0:37:23]} 27. Rd2 {[%clk 0:45:53]}  Nd5 {[%clk 0:34:51]} 28. Re1 {[%clk 0:44:13]}  Rd8 {[%clk 0:28:19]} 29. Bf3 {[%clk 0:43:01]}  Rg5 {[%clk 0:25:29]} 30. Rde2 {[%clk 0:40:12]}  Rf8 {[%clk 0:24:09]} 31. Re8 {[%clk 0:38:00]}  Kf7 {[%clk 0:23:42]} 32. R8e6 {[%clk 0:34:25]}  Rd8 {[%clk 0:22:52]} 33. Bd2 {[%clk 0:32:52]}  Rf5 {[%clk 0:22:20]} 34. Bg4 {[%clk 0:24:58]}  Rf2 {[%clk 0:21:54]} 35. R6e2 {[%clk 0:23:19]}  Rxe2 {[%clk 0:19:26]} 36. Rxe2 {[%clk 0:23:32]}  Be7 {[%clk 0:18:28]} 37. Be6+ {[%clk 0:21:09]}  Kf8 {[%clk 0:18:02]} 38. Bf5 {[%clk 0:20:18]}  h6 {[%clk 0:17:21]} 39. Kc4 {[%clk 0:17:20]}  Bf6 {[%clk 0:17:11]} 40. Bc3 {[%clk 0:45:02]}  Ra8 {[%clk 0:46:00]} 41. Kb3 {[%clk 0:45:03]}  Rd8 {[%clk 0:45:14]} 42. Kc4 {[%clk 0:42:56]}  Ra8 {[%clk 0:45:35]} 43. Kb3 {[%clk 0:43:22]}  Rd8 {[%clk 0:46:01]} 44. Kc4 {[%clk 0:43:46]}  Ra8 {[%clk 0:46:25]} 1/2-1/2

[Event "Argentine Superior Chess Championship 2023"]
[Site "https://www.chess.com"]
[Date "2023.11.04"]
[Round "8"]
[White "Silva, Luca"]
[Black "Krysa, Leandro"]
[Result "0-1"]
[Board "5"]
[TimeControl "5400+30"]
[WhiteFideId "147370"]
[BlackFideId "116807"]
[WhiteElo "2287"]
[BlackElo "2546"]
[WhiteTeam "ARG"]
[BlackTeam "ARG"]
[WhiteClock "0:02:58"]
[BlackClock "0:02:51"]

1. d4 {[%clk 1:25:49]}  Nf6 {[%clk 1:30:37]} 2. c4 {[%clk 1:26:15]}  e6 {[%clk 1:30:41]} 3. Nf3 {[%clk 1:26:40]}  d5 {[%clk 1:30:47]} 4. Nc3 {[%clk 1:27:07]}  dxc4 {[%clk 1:29:20]} 5. e4 {[%clk 1:27:09]}  b5 {[%clk 1:29:16]} 6. Nxb5 {[%clk 1:27:05]}  Nxe4 {[%clk 1:29:12]} 7. Qa4 {[%clk 1:27:21]}  c6 {[%clk 1:26:56]} 8. Nc3 {[%clk 1:27:44]}  Nxc3 {[%clk 1:26:19]} 9. bxc3 {[%clk 1:28:09]}  Ba6 {[%clk 1:26:28]} 10. Bxc4 {[%clk 1:28:01]}  Bxc4 {[%clk 1:25:28]} 11. Qxc4 {[%clk 1:28:27]}  Qc7 {[%clk 1:20:12]} 12. Ne5 {[%clk 1:16:20]}  Bd6 {[%clk 1:18:27]} 13. Bf4 {[%clk 1:14:23]}  O-O {[%clk 1:14:15]} 14. O-O {[%clk 1:12:08]}  c5 {[%clk 1:09:00]} 15. Rad1 {[%clk 0:49:08]}  Nc6 {[%clk 1:02:33]} 16. Rfe1 {[%clk 0:40:17]}  Rac8 {[%clk 1:00:27]} 17. g3 {[%clk 0:34:24]}  cxd4 {[%clk 0:54:10]} 18. Qxc6 {[%clk 0:26:39]}  Bxe5 {[%clk 0:36:06]} 19. Qxc7 {[%clk 0:27:05]}  Bxc7 {[%clk 0:36:32]} 20. Bxc7 {[%clk 0:27:14]}  Rxc7 {[%clk 0:36:56]} 21. cxd4 {[%clk 0:27:30]}  Rd8 {[%clk 0:36:52]} 22. Re5 {[%clk 0:25:47]}  Kf8 {[%clk 0:28:55]} 23. Ra5 {[%clk 0:24:33]}  Rd6 {[%clk 0:24:09]} 24. Rd3 {[%clk 0:23:04]}  a6 {[%clk 0:19:15]} 25. Kg2 {[%clk 0:18:32]}  Ke7 {[%clk 0:17:12]} 26. Kf3 {[%clk 0:18:56]}  Kf6 {[%clk 0:13:52]} 27. Ke3 {[%clk 0:16:10]}  g5 {[%clk 0:13:04]} 28. h4 {[%clk 0:14:14]}  h6 {[%clk 0:12:56]} 29. hxg5+ {[%clk 0:13:29]}  hxg5 {[%clk 0:13:21]} 30. d5 {[%clk 0:09:03]}  Rcd7 {[%clk 0:06:07]} 31. Ke4 {[%clk 0:07:57]}  Kg6 {[%clk 0:03:57]} 32. g4 {[%clk 0:07:29]}  Rb7 {[%clk 0:02:57]} 33. f3 {[%clk 0:04:56]}  Rb2 {[%clk 0:02:25]} 34. Rda3 {[%clk 0:03:20]}  exd5+ {[%clk 0:02:05]} 35. Rxd5 {[%clk 0:02:34]}  Rb4+ {[%clk 0:02:25]} 36. Ke5 {[%clk 0:02:58]}  Re6# {[%clk 0:02:51]} 0-1

[Event "Argentine Superior Chess Championship 2023"]
[Site "https://www.chess.com"]
[Date "2023.11.04"]
[Round "8"]
[White "Tokman, Ariel"]
[Black "Miranda, Rafael"]
[Result "1-0"]
[Board "6"]
[TimeControl "5400+30"]
[WhiteFideId "117420"]
[BlackFideId "130990"]
[WhiteElo "2306"]
[BlackElo "2343"]
[WhiteTeam "ARG"]
[BlackTeam "ARG"]
[WhiteClock "0:03:13"]
[BlackClock "0:09:15"]

1. d4 {[%clk 1:30:55]}  Nf6 {[%clk 1:30:48]} 2. c4 {[%clk 1:31:09]}  e6 {[%clk 1:31:05]} 3. Nf3 {[%clk 1:31:32]}  b6 {[%clk 1:31:21]} 4. a3 {[%clk 1:31:52]}  Bb7 {[%clk 1:31:31]} 5. Nc3 {[%clk 1:31:42]}  d5 {[%clk 1:31:45]} 6. cxd5 {[%clk 1:31:06]}  exd5 {[%clk 1:31:33]} 7. g3 {[%clk 1:30:51]}  Be7 {[%clk 1:30:26]} 8. Bg2 {[%clk 1:24:08]}  O-O {[%clk 1:30:35]} 9. O-O {[%clk 1:23:59]}  Re8 {[%clk 1:28:52]} 10. b4 {[%clk 1:16:51]}  a6 {[%clk 1:27:31]} 11. Bf4 {[%clk 1:12:23]}  Bd6 {[%clk 1:25:31]} 12. Bxd6 {[%clk 1:00:38]}  Qxd6 {[%clk 1:25:48]} 13. Rc1 {[%clk 1:00:48]}  Nbd7 {[%clk 1:25:32]} 14. Qb3 {[%clk 0:59:29]}  c6 {[%clk 1:25:01]} 15. Ne1 {[%clk 0:52:11]}  a5 {[%clk 1:21:53]} 16. Nd3 {[%clk 0:52:06]}  Ra7 {[%clk 1:07:53]} 17. Rfd1 {[%clk 0:51:25]}  axb4 {[%clk 0:54:39]} 18. axb4 {[%clk 0:51:15]}  Rea8 {[%clk 0:54:50]} 19. Qb2 {[%clk 0:31:34]}  Qe7 {[%clk 0:45:48]} 20. e3 {[%clk 0:30:06]}  Ne4 {[%clk 0:32:36]} 21. b5 {[%clk 0:27:02]}  Nxc3 {[%clk 0:25:57]} 22. Rxc3 {[%clk 0:25:22]}  cxb5 {[%clk 0:20:13]} 23. Qxb5 {[%clk 0:24:28]}  Ra5 {[%clk 0:19:12]} 24. Qb4 {[%clk 0:24:22]}  Qxb4 {[%clk 0:17:47]} 25. Nxb4 {[%clk 0:24:47]}  Nf6 {[%clk 0:18:10]} 26. Rc7 {[%clk 0:19:11]}  Rb5 {[%clk 0:18:15]} 27. Nd3 {[%clk 0:17:09]}  Bc8 {[%clk 0:18:38]} 28. Rdc1 {[%clk 0:14:46]}  Bf5 {[%clk 0:18:03]} 29. Ne5 {[%clk 0:13:45]}  Be6 {[%clk 0:17:53]} 30. Bf1 {[%clk 0:10:20]}  Rb2 {[%clk 0:18:03]} 31. R7c2 {[%clk 0:10:30]}  Rb3 {[%clk 0:12:21]} 32. Rc3 {[%clk 0:10:24]}  Rxc3 {[%clk 0:11:02]} 33. Rxc3 {[%clk 0:10:52]}  Ra1 {[%clk 0:10:30]} 34. Kg2 {[%clk 0:10:08]}  Ne4 {[%clk 0:09:54]} 35. Rc2 {[%clk 0:09:34]}  f6 {[%clk 0:09:05]} 36. Nd3 {[%clk 0:09:29]}  Ng5 {[%clk 0:08:46]} 37. Nf4 {[%clk 0:07:25]}  Bf5 {[%clk 0:08:53]} 38. Bd3 {[%clk 0:06:58]}  Be4+ {[%clk 0:07:26]} 39. Bxe4 {[%clk 0:07:19]}  dxe4 {[%clk 0:07:55]} 40. Rb2 {[%clk 0:32:36]}  Nf3 {[%clk 0:38:11]} 41. Rxb6 {[%clk 0:23:35]}  g5 {[%clk 0:24:41]} 42. Nd5 {[%clk 0:07:11]}  f5 {[%clk 0:19:09]} 43. Ne7+ {[%clk 0:07:24]}  Kf8 {[%clk 0:11:37]} 44. Nxf5 {[%clk 0:07:20]}  h5 {[%clk 0:10:50]} 45. Rf6+ {[%clk 0:06:53]}  Kg8 {[%clk 0:08:12]} 46. Ne7+ {[%clk 0:07:14]}  Kg7 {[%clk 0:08:34]} 47. Rxf3 {[%clk 0:07:38]}  exf3+ {[%clk 0:08:49]} 48. Kxf3 {[%clk 0:08:03]}  Ra2 {[%clk 0:07:58]} 49. Nd5 {[%clk 0:05:49]}  g4+ {[%clk 0:08:04]} 50. Kg2 {[%clk 0:05:51]}  Kg6 {[%clk 0:08:13]} 51. Nf4+ {[%clk 0:05:46]}  Kg5 {[%clk 0:08:31]} 52. h4+ {[%clk 0:05:00]}  gxh3+ {[%clk 0:08:46]} 53. Nxh3+ {[%clk 0:05:25]}  Kg4 {[%clk 0:09:09]} 54. Nf4 {[%clk 0:05:36]}  Rd2 {[%clk 0:09:15]} 55. Ng6 {[%clk 0:03:13]} 1-0

[Event "Argentine Superior Chess Championship 2023"]
[Site "https://www.chess.com"]
[Date "2023.11.05"]
[Round "9"]
[White "Peralta, Fernando"]
[Black "Acosta, Pablo Ismael"]
[Result "1/2-1/2"]
[Board "1"]
[TimeControl "5400+30"]
[WhiteFideId "105309"]
[BlackFideId "124311"]
[WhiteElo "2580"]
[BlackElo "2477"]
[WhiteTeam "ARG"]
[BlackTeam "ARG"]
[WhiteClock "0:00:50"]
[BlackClock "0:05:25"]

1. d4 {[%clk 1:30:57]}  d5 {[%clk 1:25:49]} 2. c4 {[%clk 1:31:22]}  e6 {[%clk 1:26:14]} 3. Nc3 {[%clk 1:31:47]}  Nf6 {[%clk 1:26:40]} 4. cxd5 {[%clk 1:32:02]}  exd5 {[%clk 1:26:57]} 5. Bg5 {[%clk 1:32:24]}  c6 {[%clk 1:27:15]} 6. Qc2 {[%clk 1:31:17]}  Be7 {[%clk 1:26:14]} 7. e3 {[%clk 1:31:41]}  Nbd7 {[%clk 1:25:16]} 8. Bd3 {[%clk 1:32:03]}  h6 {[%clk 1:25:41]} 9. Bh4 {[%clk 1:31:42]}  Nh5 {[%clk 1:26:04]} 10. Bxe7 {[%clk 1:31:58]}  Qxe7 {[%clk 1:26:27]} 11. Nge2 {[%clk 1:31:58]}  Nb6 {[%clk 1:23:22]} 12. O-O {[%clk 1:32:08]}  O-O {[%clk 1:23:45]} 13. Rae1 {[%clk 1:32:27]}  f5 {[%clk 1:11:48]} 14. Nb1 {[%clk 1:26:25]}  Qf6 {[%clk 1:04:07]} 15. Nd2 {[%clk 1:25:17]}  f4 {[%clk 1:02:49]} 16. exf4 {[%clk 1:05:11]}  Nxf4 {[%clk 1:01:09]} 17. Nxf4 {[%clk 1:04:06]}  Qxf4 {[%clk 1:01:34]} 18. Bh7+ {[%clk 1:04:03]}  Kh8 {[%clk 1:01:37]} 19. Nf3 {[%clk 1:04:27]}  Bf5 {[%clk 0:50:30]} 20. Bxf5 {[%clk 1:04:44]}  Qxf5 {[%clk 0:50:56]} 21. Qxf5 {[%clk 1:02:17]}  Rxf5 {[%clk 0:51:18]} 22. Re7 {[%clk 1:02:32]}  Rb8 {[%clk 0:50:38]} 23. Nh4 {[%clk 0:39:03]}  Rf6 {[%clk 0:49:56]} 24. b3 {[%clk 0:38:54]}  Kg8 {[%clk 0:49:48]} 25. Rfe1 {[%clk 0:35:49]}  Rf7 {[%clk 0:29:24]} 26. Ng6 {[%clk 0:32:58]}  Nd7 {[%clk 0:24:37]} 27. Rxf7 {[%clk 0:14:25]}  Kxf7 {[%clk 0:25:01]} 28. Re7+ {[%clk 0:14:54]}  Kxg6 {[%clk 0:25:22]} 29. Rxd7 {[%clk 0:15:22]}  Re8 {[%clk 0:15:08]} 30. Kf1 {[%clk 0:15:20]}  Re4 {[%clk 0:15:04]} 31. Rxb7 {[%clk 0:15:40]}  Rxd4 {[%clk 0:15:26]} 32. Ke2 {[%clk 0:10:54]}  Re4+ {[%clk 0:11:01]} 33. Kd3 {[%clk 0:09:56]}  Rf4 {[%clk 0:09:14]} 34. f3 {[%clk 0:08:44]}  Rf7 {[%clk 0:08:23]} 35. Rb8 {[%clk 0:08:43]}  Rc7 {[%clk 0:04:39]} 36. Rd8 {[%clk 0:03:14]}  Kf7 {[%clk 0:03:52]} 37. Kd4 {[%clk 0:00:59]}  Re7 {[%clk 0:03:58]} 38. Ra8 {[%clk 0:00:36]}  Re2 {[%clk 0:03:48]} 39. Rxa7+ {[%clk 0:01:01]}  Kf6 {[%clk 0:03:12]} 40. g3 {[%clk 0:30:31]}  Rxh2 {[%clk 0:32:30]} 41. a4 {[%clk 0:25:09]}  Rd2+ {[%clk 0:31:20]} 42. Ke3 {[%clk 0:22:11]}  Rb2 {[%clk 0:29:05]} 43. Rb7 {[%clk 0:21:53]}  Ke5 {[%clk 0:24:51]} 44. a5 {[%clk 0:20:03]}  Ra2 {[%clk 0:24:49]} 45. Rxg7 {[%clk 0:15:11]}  Rxa5 {[%clk 0:23:01]} 46. f4+ {[%clk 0:13:39]}  Kf6 {[%clk 0:15:58]} 47. Rh7 {[%clk 0:12:43]}  Kg6 {[%clk 0:08:30]} 48. Rc7 {[%clk 0:13:06]}  Ra6 {[%clk 0:05:10]} 49. g4 {[%clk 0:03:57]}  Rb6 {[%clk 0:05:02]} 50. b4 {[%clk 0:04:14]}  Kf6 {[%clk 0:03:17]} 51. Kf3 {[%clk 0:03:47]}  Rxb4 {[%clk 0:01:59]} 52. Rxc6+ {[%clk 0:04:13]}  Kg7 {[%clk 0:02:26]} 53. f5 {[%clk 0:01:48]}  Rd4 {[%clk 0:02:20]} 54. Rg6+ {[%clk 0:00:58]}  Kh7 {[%clk 0:02:48]} 55. Rd6 {[%clk 0:01:18]}  Kg7 {[%clk 0:01:50]} 56. Rd7+ {[%clk 0:00:42]}  Kg8 {[%clk 0:02:09]} 57. Rd8+ {[%clk 0:01:01]}  Kg7 {[%clk 0:02:35]} 58. Rd7+ {[%clk 0:01:29]}  Kg8 {[%clk 0:03:00]} 59. Kg3 {[%clk 0:00:53]}  Rd1 {[%clk 0:03:12]} 60. Kf4 {[%clk 0:00:35]}  Rd4+ {[%clk 0:03:30]} 61. Ke5 {[%clk 0:00:34]}  Rxg4 {[%clk 0:03:41]} 62. Kf6 {[%clk 0:00:40]}  d4 {[%clk 0:03:37]} 63. Rd8+ {[%clk 0:00:55]}  Kh7 {[%clk 0:04:02]} 64. Rd7+ {[%clk 0:01:21]}  Kg8 {[%clk 0:04:29]} 65. Rd8+ {[%clk 0:01:15]}  Kh7 {[%clk 0:04:55]} 66. Rd7+ {[%clk 0:00:36]}  Kg8 {[%clk 0:05:20]} 67. Ke6 {[%clk 0:00:50]}  Re4+ {[%clk 0:05:25]} 1/2-1/2

[Event "Argentine Superior Chess Championship 2023"]
[Site "https://www.chess.com"]
[Date "2023.11.05"]
[Round "9"]
[White "Gomez, Carlos David"]
[Black "Perez Ponsa, Federico"]
[Result "0-1"]
[Board "2"]
[TimeControl "5400+30"]
[WhiteFideId "114669"]
[BlackFideId "117927"]
[WhiteElo "2336"]
[BlackElo "2524"]
[WhiteTeam "ARG"]
[BlackTeam "ARG"]
[WhiteClock "0:00:38"]
[BlackClock "0:01:29"]

1. c4 {[%clk 1:30:44]}  e6 {[%clk 1:28:24]} 2. Nf3 {[%clk 1:30:55]}  d5 {[%clk 1:27:57]} 3. e3 {[%clk 1:31:16]}  Nf6 {[%clk 1:26:38]} 4. b3 {[%clk 1:31:31]}  Bd6 {[%clk 1:23:05]} 5. Bb2 {[%clk 1:31:35]}  Nbd7 {[%clk 1:20:35]} 6. Nc3 {[%clk 1:30:24]}  O-O {[%clk 1:16:46]} 7. d4 {[%clk 1:23:35]}  c6 {[%clk 1:11:07]} 8. Bd3 {[%clk 1:22:08]}  e5 {[%clk 1:07:46]} 9. cxd5 {[%clk 1:16:43]}  cxd5 {[%clk 1:07:21]} 10. dxe5 {[%clk 1:14:46]}  Nxe5 {[%clk 1:07:45]} 11. Nxe5 {[%clk 1:14:52]}  Bxe5 {[%clk 1:08:09]} 12. Qc2 {[%clk 1:14:06]}  Be6 {[%clk 0:53:49]} 13. Ne2 {[%clk 1:12:10]}  Rc8 {[%clk 0:43:08]} 14. Qd2 {[%clk 1:12:20]}  Bb8 {[%clk 0:36:32]} 15. O-O {[%clk 1:07:04]}  Ne4 {[%clk 0:31:44]} 16. Qb4 {[%clk 0:58:51]}  Nc5 {[%clk 0:26:26]} 17. Bb1 {[%clk 0:40:11]}  Qg5 {[%clk 0:25:47]} 18. f4 {[%clk 0:35:17]}  Qh6 {[%clk 0:25:42]} 19. Ng3 {[%clk 0:33:28]}  f5 {[%clk 0:21:04]} 20. Ne2 {[%clk 0:29:52]}  Bd6 {[%clk 0:18:58]} 21. Rf3 {[%clk 0:28:51]}  Rf7 {[%clk 0:16:41]} 22. Rh3 {[%clk 0:23:34]}  Qg6 {[%clk 0:16:49]} 23. Qe1 {[%clk 0:23:57]}  Bd7 {[%clk 0:12:39]} 24. Qd1 {[%clk 0:19:41]}  Re8 {[%clk 0:10:57]} 25. Bc2 {[%clk 0:18:49]}  Be7 {[%clk 0:08:14]} 26. b4 {[%clk 0:15:33]}  Ne4 {[%clk 0:07:33]} 27. Bb3 {[%clk 0:15:49]}  Be6 {[%clk 0:06:38]} 28. Nd4 {[%clk 0:14:47]}  Rd8 {[%clk 0:06:55]} 29. Nf3 {[%clk 0:14:58]}  Bf6 {[%clk 0:06:43]} 30. Ne5 {[%clk 0:15:05]}  Bxe5 {[%clk 0:06:40]} 31. Bxe5 {[%clk 0:15:23]}  d4 {[%clk 0:04:36]} 32. exd4 {[%clk 0:12:46]}  Bxb3 {[%clk 0:04:41]} 33. Qxb3 {[%clk 0:12:50]}  Rc8 {[%clk 0:03:39]} 34. Rd3 {[%clk 0:12:37]}  h6 {[%clk 0:03:42]} 35. a4 {[%clk 0:07:37]}  Kh7 {[%clk 0:03:49]} 36. a5 {[%clk 0:07:41]}  Rd7 {[%clk 0:03:39]} 37. d5 {[%clk 0:07:14]}  Qh5 {[%clk 0:03:13]} 38. Qd1 {[%clk 0:00:56]}  Qf7 {[%clk 0:03:27]} 39. Qb3 {[%clk 0:30:59]}  Qh5 {[%clk 0:33:56]} 40. Re1 {[%clk 0:30:42]}  Qh4 {[%clk 0:31:19]} 41. g3 {[%clk 0:30:00]}  Qh5 {[%clk 0:30:39]} 42. d6 {[%clk 0:21:59]}  a6 {[%clk 0:28:50]} 43. Qa2 {[%clk 0:18:42]}  Qg6 {[%clk 0:25:24]} 44. Kh1 {[%clk 0:16:47]}  Qh5 {[%clk 0:18:37]} 45. Qe2 {[%clk 0:14:34]}  Qh3 {[%clk 0:13:44]} 46. Re3 {[%clk 0:09:54]}  h5 {[%clk 0:11:32]} 47. Rg1 {[%clk 0:03:01]}  Qg4 {[%clk 0:07:36]} 48. Qg2 {[%clk 0:02:31]}  Nxd6 {[%clk 0:04:05]} 49. Rd3 {[%clk 0:00:33]}  Rcd8 {[%clk 0:04:26]} 50. h3 {[%clk 0:00:41]}  Qg6 {[%clk 0:04:44]} 51. Rgd1 {[%clk 0:00:46]}  Qe6 {[%clk 0:05:03]} 52. Qe2 {[%clk 0:00:38]}  Ne4 {[%clk 0:03:52]} 53. Rxd7 {[%clk 0:00:39]}  Nxg3+ {[%clk 0:02:12]} 54. Kh2 {[%clk 0:00:38]}  Rxd7 {[%clk 0:02:33]} 55. Qc2 {[%clk 0:00:36]}  h4 {[%clk 0:01:32]} 56. Rxd7 {[%clk 0:00:31]}  Qxd7 {[%clk 0:02:00]} 57. Kg2 {[%clk 0:00:44]}  Ne4 {[%clk 0:01:07]} 58. Kf3 {[%clk 0:00:56]}  Qb5 {[%clk 0:01:06]} 59. Qc7 {[%clk 0:00:38]}  Qd3+ {[%clk 0:01:29]} 0-1

[Event "Argentine Superior Chess Championship 2023"]
[Site "https://www.chess.com"]
[Date "2023.11.05"]
[Round "9"]
[White "Krysa, Leandro"]
[Black "Villca, Julian"]
[Result "1/2-1/2"]
[Board "3"]
[TimeControl "5400+30"]
[WhiteFideId "116807"]
[BlackFideId "134902"]
[WhiteElo "2545"]
[BlackElo "2398"]
[WhiteTeam "ARG"]
[BlackTeam "ARG"]
[WhiteClock "0:00:59"]
[BlackClock "0:17:45"]

1. d4 {[%clk 1:30:50]}  d5 {[%clk 1:30:44]} 2. c4 {[%clk 1:31:02]}  e6 {[%clk 1:31:08]} 3. Nf3 {[%clk 1:31:12]}  Nf6 {[%clk 1:31:29]} 4. g3 {[%clk 1:31:23]}  c6 {[%clk 1:31:52]} 5. Bg2 {[%clk 1:30:03]}  Be7 {[%clk 1:31:29]} 6. O-O {[%clk 1:29:52]}  O-O {[%clk 1:31:53]} 7. Nc3 {[%clk 1:30:12]}  a5 {[%clk 1:32:11]} 8. Ne5 {[%clk 1:21:57]}  Nfd7 {[%clk 1:17:13]} 9. Be3 {[%clk 1:18:31]}  b6 {[%clk 1:10:01]} 10. f4 {[%clk 1:08:00]}  Nxe5 {[%clk 0:57:52]} 11. dxe5 {[%clk 1:08:09]}  Nd7 {[%clk 0:57:38]} 12. cxd5 {[%clk 0:52:41]}  exd5 {[%clk 0:51:50]} 13. Qc2 {[%clk 0:49:36]}  Bc5 {[%clk 0:44:58]} 14. Bxc5 {[%clk 0:44:23]}  Nxc5 {[%clk 0:45:25]} 15. Rfd1 {[%clk 0:39:38]}  Kh8 {[%clk 0:30:07]} 16. Na4 {[%clk 0:31:09]}  Nxa4 {[%clk 0:29:16]} 17. Qxa4 {[%clk 0:30:50]}  Bd7 {[%clk 0:27:33]} 18. Qd4 {[%clk 0:27:11]}  Bg4 {[%clk 0:16:57]} 19. Rac1 {[%clk 0:19:52]}  Rc8 {[%clk 0:16:06]} 20. Rd2 {[%clk 0:16:55]}  Be6 {[%clk 0:14:06]} 21. Qf2 {[%clk 0:15:55]}  f5 {[%clk 0:13:57]} 22. exf6 {[%clk 0:15:17]}  Rxf6 {[%clk 0:14:13]} 23. e4 {[%clk 0:15:23]}  Bg8 {[%clk 0:14:18]} 24. Bh3 {[%clk 0:05:22]}  Rb8 {[%clk 0:13:16]} 25. e5 {[%clk 0:05:35]}  Rh6 {[%clk 0:13:38]} 26. Bg2 {[%clk 0:05:40]}  Qe7 {[%clk 0:11:43]} 27. Re1 {[%clk 0:05:29]}  Re6 {[%clk 0:10:35]} 28. Bh3 {[%clk 0:05:25]}  Rh6 {[%clk 0:11:03]} 29. Bg2 {[%clk 0:05:22]}  Re6 {[%clk 0:11:31]} 30. Rde2 {[%clk 0:04:48]}  g6 {[%clk 0:09:53]} 31. g4 {[%clk 0:04:54]}  Rf8 {[%clk 0:09:34]} 32. Rf1 {[%clk 0:03:41]}  Qb4 {[%clk 0:08:16]} 33. a3 {[%clk 0:03:38]}  Qc4 {[%clk 0:07:52]} 34. Qe3 {[%clk 0:01:44]}  Re7 {[%clk 0:06:57]} 35. b3 {[%clk 0:01:58]}  Qb5 {[%clk 0:06:21]} 36. Rd2 {[%clk 0:01:33]}  Be6 {[%clk 0:03:32]} 37. f5 {[%clk 0:01:00]}  gxf5 {[%clk 0:02:36]} 38. gxf5 {[%clk 0:00:37]}  Rxf5 {[%clk 0:02:09]} 39. Rxf5 {[%clk 0:00:35]}  Bxf5 {[%clk 0:02:28]} 40. Rf2 {[%clk 0:30:45]}  Bg6 {[%clk 0:30:31]} 41. Qg5 {[%clk 0:02:47]}  Qc5 {[%clk 0:15:35]} 42. Qf6+ {[%clk 0:00:39]}  Rg7 {[%clk 0:15:55]} 43. Qd8+ {[%clk 0:00:46]}  Rg8 {[%clk 0:16:20]} 44. Qf6+ {[%clk 0:01:12]}  Rg7 {[%clk 0:16:48]} 45. Qd8+ {[%clk 0:00:44]}  Rg8 {[%clk 0:17:17]} 46. Qf6+ {[%clk 0:00:59]}  Rg7 {[%clk 0:17:45]} 1/2-1/2

[Event "Argentine Superior Chess Championship 2023"]
[Site "https://www.chess.com"]
[Date "2023.11.05"]
[Round "9"]
[White "Valerga, Diego"]
[Black "Tristan, Leonardo"]
[Result "1-0"]
[Board "4"]
[TimeControl "5400+30"]
[WhiteFideId "100587"]
[BlackFideId "113816"]
[WhiteElo "2429"]
[BlackElo "2524"]
[WhiteTeam "ARG"]
[BlackTeam "ARG"]
[WhiteClock "0:30:40"]
[BlackClock "0:30:40"]

1. d4 {[%clk 1:30:53]}  Nf6 {[%clk 1:30:49]} 2. Nf3 {[%clk 1:31:14]}  c5 {[%clk 1:31:09]} 3. d5 {[%clk 1:30:45]}  b5 {[%clk 1:31:33]} 4. Bg5 {[%clk 1:31:01]}  Qb6 {[%clk 1:31:58]} 5. Bxf6 {[%clk 1:30:04]}  Qxf6 {[%clk 1:32:22]} 6. c3 {[%clk 1:30:27]}  g6 {[%clk 1:32:39]} 7. e4 {[%clk 1:29:14]}  Qb6 {[%clk 1:33:03]} 8. Nbd2 {[%clk 1:14:02]}  Bg7 {[%clk 1:26:18]} 9. h4 {[%clk 1:11:22]}  O-O {[%clk 1:21:49]} 10. h5 {[%clk 1:11:01]}  e6 {[%clk 1:10:14]} 11. dxe6 {[%clk 1:00:38]}  dxe6 {[%clk 1:04:13]} 12. Qe2 {[%clk 0:59:54]}  b4 {[%clk 0:57:48]} 13. Nc4 {[%clk 0:56:42]}  Qc6 {[%clk 0:56:15]} 14. cxb4 {[%clk 0:46:00]}  cxb4 {[%clk 0:49:20]} 15. Qe3 {[%clk 0:36:55]}  Nd7 {[%clk 0:40:08]} 16. hxg6 {[%clk 0:32:50]}  fxg6 {[%clk 0:36:21]} 17. Nd4 {[%clk 0:23:08]}  Qc5 {[%clk 0:12:14]} 18. Nxe6 {[%clk 0:17:46]}  Qxe3+ {[%clk 0:12:34]} 19. fxe3 {[%clk 0:18:00]}  Rxf1+ {[%clk 0:11:51]} 20. Rxf1 {[%clk 0:15:27]}  Ba6 {[%clk 0:12:17]} 21. Nc7 {[%clk 0:08:01]}  Bxc4 {[%clk 0:12:43]} 22. Nxa8 {[%clk 0:08:24]}  Bxb2 {[%clk 0:13:08]} 23. Kf2 {[%clk 0:05:52]}  Nc5 {[%clk 0:02:56]} 24. Kf3 {[%clk 0:03:56]}  Bd3 {[%clk 0:03:16]} 25. Rad1 {[%clk 0:02:11]}  Bxe4+ {[%clk 0:02:43]} 26. Ke2 {[%clk 0:02:16]}  Bxg2 {[%clk 0:02:06]} 27. Rf4 {[%clk 0:02:31]}  a5 {[%clk 0:00:59]} 28. Nc7 {[%clk 0:02:30]}  Be5 {[%clk 0:00:45]} 29. Rc4 {[%clk 0:02:05]}  Ne4 {[%clk 0:00:43]} 30. Rg1 {[%clk 0:01:02]}  Nc3+ {[%clk 0:00:42]} 31. Rxc3 {[%clk 0:00:53]}  bxc3 {[%clk 0:01:08]} 32. Rxg2 {[%clk 0:01:14]}  Bxc7 {[%clk 0:01:34]} 33. Kd3 {[%clk 0:01:28]}  Kg7 {[%clk 0:01:19]} 34. Kxc3 {[%clk 0:01:39]}  h5 {[%clk 0:01:21]} 35. Kd4 {[%clk 0:01:55]}  Kf6 {[%clk 0:00:44]} 36. Ke4 {[%clk 0:02:00]}  g5 {[%clk 0:00:40]} 37. Rc2 {[%clk 0:02:21]}  Bd6 {[%clk 0:00:56]} 38. Rc6 {[%clk 0:02:10]}  Ke6 {[%clk 0:01:21]} 39. Ra6 {[%clk 0:02:15]}  g4 {[%clk 0:00:31]} 40. Rxa5 {[%clk 0:32:20]}  h4 {[%clk 0:30:40]} 41. Rg5 {[%clk 0:30:40]} 1-0